bitfinex/quotes_ETHUSD_20240824
["timestamp","ask_amount","ask_price","bid_price","bid_amount"]
[1724478629057,1.90447497,2756.4,2756.3,3.62805]
[1724478631293,1.90447497,2756.4,2756.3,7.8061]
[1724478631905,1.90447497,2756.4,2756.3,7.87050711]
[1724478633571,1.90447497,2756.5,2756.4,3.62792]
[1724478633776,1.90447497,2756.5,2756.4,4.24203674]
[1724478634125,1.90447497,2756.5,2756.4,7.86995674]
[1724478634324,2.28536322,2756.8,2756.5,3.62778]
[1724478634521,2.69647388,2756.8,2756.5,3.62778]
[1724478634742,2.69647388,2756.7,2756.5,3.62778]
[1724478634896,1.90444312,2756.6,2756.5,3.62778]
[1724478638632,2.69644942,2756.8,2756.5,3.62778]
[1724478639080,1.904162,2756.6,2756.5,3.62778]
[1724478641005,1.90399784,2756.6,2756.5,3.62778]
[1724478641192,1.90399784,2756.7,2756.5,4.408362]
[1724478642677,1.90399784,2756.7,2756.6,3.62765]
[1724478642980,7.45,2756.9,2756.6,3.62765]
[1724478642981,1.90399784,2756.8,2756.7,3.62752]
[1724478643265,1.90399784,2756.8,2756.7,4.17752]
[1724478643476,1.87081447,2756.8,2756.7,5.2805082]
[1724478645871,2.69343815,2757.1,2756.7,5.2805082]
[1724478646171,2.69343815,2757.1,2756.7,4.17752]
[1724478648536,2.69343815,2757.1,2756.7,0.55]
[1724478648861,1.52223423,2756.8,2756.6,4.17757]
[1724478649069,1.52223423,2756.8,2755.3,5.71847849]
[1724478649286,0.76110826,2756.5,2756.4,3.62792]
[1724478649788,0.76110826,2756.5,2756.4,7.25584]
[1724478649993,1.1416624,2756.6,2756.5,3.62778]
[1724478651361,1.1416624,2756.6,2756.5,4.17778]
[1724478652593,1.1416624,2756.6,2756.5,0.55]
[1724478653178,1.1416624,2756.6,2756.5,4.17778]
[1724478653368,1.1416624,2756.7,2756.5,5.20275]
[1724478653696,1.1416624,2756.7,2756.6,4.17765]
[1724478653861,8.97223423,2756.9,2756.7,3.62752]
[1724478653862,1.1416624,2756.8,2756.7,3.62752]
[1724478654200,0.76073431,2756.8,2756.7,3.62752]
[1724478655344,0.76073431,2756.8,2756.7,4.17752]
[1724478655895,0.76073431,2756.8,2756.7,4.24141657]
[1724478657068,0.76073431,2756.8,2756.7,6.68541657]
[1724478659230,0.76073431,2756.8,2756.7,4.24141657]
[1724478663111,1.1416624,2756.8,2756.7,4.24141657]
[1724478663421,0.76030032,2756.8,2756.7,4.24141657]
[1724478664135,0.76030032,2756.8,2756.7,0.06389657]
[1724478664346,4.68263086,2756.8,2756.7,0.06389657]
[1724478664645,4.68138755,2756.8,2756.7,0.06285593]
[1724478664942,4.68138755,2756.8,2756.2,3.62806]
[1724478664943,4.68138755,2756.8,2756.4,3.62791]
[1724478665155,4.68138755,2756.8,2756.7,0.06285593]
[1724478665156,4.26681061,2756.8,2756.7,0.06285593]
[1724478665303,4.68150669,2756.8,2756.4,3.62791]
[1724478665508,0.76052056,2756.5,2756.4,3.62791]
[1724478666837,1.14078084,2756.6,2756.4,3.62791]
[1724478667032,1.14078084,2756.6,2756.2,3.62806]
[1724478667239,0.76057482,2756.4,2756.0,3.62837]
[1724478667418,0.76065903,2756.1,2756.0,3.62837]
[1724478667621,0.76065903,2756.1,2755.9,3.62852]
[1724478667822,0.76065903,2756.0,2755.9,3.62852]
[1724478668744,0.76065903,2756.1,2756.0,3.62844]
[1724478671455,0.76065903,2756.1,2756.0,7.25688]
[1724478672673,1.14078084,2756.3,2756.1,7.25662]
[1724478672674,0.76065903,2756.2,2756.1,7.25662]
[1724478672830,0.76065903,2756.3,2756.2,7.25636]
[1724478673243,0.76065903,2756.3,2756.2,7.80636]
[1724478674452,1.14078084,2756.4,2756.3,3.62805]
[1724478674657,1.14078084,2756.4,2756.3,4.17805]
[1724478675185,1.14078084,2756.4,2756.3,7.8061]
[1724478675541,8.97099092,2756.6,2756.4,3.62792]
[1724478675751,1.14119464,2756.5,2756.4,3.62792]
[1724478676288,1.14119464,2756.5,2756.4,7.25584]
[1724478676491,1.14119464,2756.6,2756.5,7.25556]
[1724478676648,1.90198319,2756.6,2756.5,7.80556]
[1724478676992,0.76078855,2756.6,2756.5,7.80556]
[1724478677287,0.76078855,2756.6,2756.5,8.9212114]
[1724478679103,0.76078855,2756.6,2756.5,8.98445849]
[1724478679533,1.14119464,2756.7,2756.6,3.62765]
[1724478680035,1.14119464,2756.7,2756.6,3.69087662]
[1724478682720,1.14119464,2756.7,2756.6,0.06322662]
[1724478685208,1.14119464,2756.7,2756.6,3.69087662]
[1724478685938,0.41480461,2756.7,2756.6,3.69087662]
[1724478687063,1.14131568,2756.7,2756.6,3.69087662]
[1724478689662,1.14131568,2756.8,2756.6,3.69087662]
[1724478689865,1.14131568,2756.8,2756.7,3.62752]
[1724478690080,1.14131568,2756.8,2756.7,3.69072087]
[1724478690081,0.41475091,2756.8,2756.7,3.69072087]
[1724478691260,1.14126602,2756.8,2756.7,3.69072087]
[1724478693369,1.52099092,2756.9,2756.7,3.69072087]
[1724478693674,1.14123352,2756.8,2756.7,3.69072087]
[1724478694380,1.52099092,2756.9,2756.7,3.69072087]
[1724478695629,1.93572288,2756.8,2756.7,3.69072087]
[1724478696342,1.14122016,2756.8,2756.7,3.69072087]
[1724478700875,1.93571746,2756.8,2756.7,3.69072087]
[1724478701574,1.52099092,2756.8,2756.7,3.69072087]
[1724478701807,0.41472654,2756.8,2756.7,3.69072087]
[1724478702372,1.93571746,2756.8,2756.7,3.69072087]
[1724478702561,0.41472654,2756.8,2756.7,3.69072087]
[1724478702880,1.93571746,2756.8,2756.7,3.69072087]
[1724478703082,0.41472654,2756.8,2756.7,3.69072087]
[1724478703390,1.14127014,2756.8,2756.7,4.24072087]
[1724478703733,1.14127014,2756.8,2756.7,7.86824087]
[1724478705431,1.14127014,2756.9,2756.8,3.62739]
[1724478705641,1.14127014,2756.9,2756.8,3.69058623]
[1724478708556,0.41466226,2756.9,2756.8,3.69058623]
[1724478708761,1.14126317,2756.9,2756.8,3.69058623]
[1724478709298,7.60036,2756.9,2756.8,0.06319623]
[1724478709522,9.93860566,2756.9,2755.8,2.3897]
[1724478709678,1.90248775,2756.3,2756.1,3.62826]
[1724478710022,0.7609951,2756.4,2756.1,3.62826]
[1724478710215,0.7609951,2756.4,2756.3,3.62805]
[1724478710869,0.7609951,2756.4,2756.3,4.17805]
[1724478711608,0.7609951,2756.4,2756.3,0.55]
[1724478711977,1.14149265,2756.5,2756.3,0.55]
[1724478712163,0.76094517,2756.4,2756.3,0.55]
[1724478712764,1.14149265,2756.5,2756.3,0.55]
[1724478713013,1.14149265,2756.5,2756.4,0.55]
[1724478713444,1.14149265,2756.5,2756.3,0.55]
[1724478714130,3.51689265,2756.5,2756.3,0.55]
[1724478714450,1.14149265,2756.4,2756.3,0.55]
[1724478716144,1.14149265,2756.4,2756.0,3.62841]
[1724478716304,0.76125945,2756.2,2756.1,0.55]
[1724478716494,1.14188917,2756.3,2756.1,0.55]
[1724478716895,0.76134469,2756.2,2756.1,0.55]
[1724478718439,1.14188917,2756.3,2756.1,0.55]
[1724478718987,0.76150931,2756.2,2756.1,0.55]
[1724478719835,1.14188917,2756.3,2756.1,4.17831]
[1724478720471,1.14188917,2756.2,2756.1,0.55]
[1724478723062,1.14188917,2756.3,2756.1,4.17824]
[1724478723270,1.14188917,2756.3,2756.2,3.62818]
[1724478724138,1.14188917,2756.3,2756.2,3.68540872]
[1724478725123,1.14188917,2756.4,2756.2,3.68540872]
[1724478725561,0.76135543,2756.4,2756.3,5.94805]
[1724478725878,1.14188917,2756.5,2756.4,3.62792]
[1724478726181,1.14188917,2756.6,2756.5,3.62778]
[1724478726534,1.14188917,2756.6,2756.5,3.68494728]
[1724478730646,1.5219902,2756.7,2756.6,3.62765]
[1724478730647,1.14188917,2756.7,2756.6,3.62765]
[1724478730838,1.14188917,2756.7,2756.6,4.17765]
[1724478731040,1.14188917,2756.7,2756.6,4.2347968]
[1724478732470,1.14188917,2756.7,2756.6,5.02105448]
[1724478732641,1.14188917,2756.7,2756.6,1.39340448]
[1724478733660,1.14188917,2756.7,2756.6,0.6071468]
[1724478737786,1.14188917,2756.7,2756.6,4.2347968]
[1724478737987,1.14188917,2756.8,2756.6,4.2347968]
[1724478738169,1.14188917,2756.7,2756.6,4.2347968]
[1724478739461,1.14188917,2756.8,2756.6,4.2347968]
[1724478739668,1.14188917,2756.8,2756.6,5.02104648]
[1724478739873,0.76120051,2756.7,2756.6,5.02104648]
[1724478740115,1.14188917,2756.8,2756.6,5.02104648]
[1724478740324,0.76119134,2756.7,2756.6,5.02104648]
[1724478740695,1.14188917,2756.8,2756.6,5.02104648]
[1724478742515,1.14188917,2756.7,2756.6,5.02104648]
[1724478743721,1.5219902,2756.9,2756.6,5.02104648]
[1724478743722,1.14188917,2756.8,2756.6,5.02104648]
[1724478744586,1.14188917,2756.7,2756.6,5.02104648]
[1724478745706,0.76113993,2756.7,2756.6,5.02104648]
[1724478745883,1.14188917,2756.8,2756.6,5.02104648]
[1724478747295,0.76111559,2756.7,2756.6,5.02104648]
[1724478749707,1.14188917,2756.8,2756.6,5.02104648]
[1724478750344,1.14188917,2756.7,2756.6,5.02104648]
[1724478750903,1.14188917,2756.8,2756.6,5.02104648]
[1724478751208,1.14188917,2756.8,2756.6,4.2347968]
[1724478752019,0.76108667,2756.7,2756.6,4.2347968]
[1724478752204,1.14188917,2756.8,2756.6,4.2347968]
[1724478753148,0.76109358,2756.7,2756.6,4.2347968]
[1724478753364,0.76109358,2756.7,2756.6,5.02104648]
[1724478754883,1.14188917,2756.8,2756.6,5.02104648]
[1724478755792,0.76105335,2756.9,2756.8,3.62739]
[1724478756280,0.76105335,2756.9,2756.8,3.68413624]
[1724478756481,0.76105335,2756.9,2756.8,5.04721877]
[1724478757392,0.76105335,2757.0,2756.9,3.62726]
[1724478757542,0.76105335,2757.0,2756.9,4.17726]
[1724478757740,0.76105335,2757.0,2756.9,4.23398577]
[1724478762368,0.76105335,2757.0,2756.9,6.56998577]
[1724478762645,0.76105335,2757.0,2756.9,5.32777761]
[1724478764403,0.76105335,2757.1,2757.0,7.25426]
[1724478764691,0.76105335,2757.1,2757.0,7.80426]
[1724478764893,0.76105335,2757.1,2757.0,7.8607274]
[1724478765097,0.76105335,2757.1,2757.0,8.83023359]
[1724478766344,0.76105335,2757.1,2757.0,11.22643359]
[1724478768902,0.76105335,2757.1,2757.0,8.83023359]
[1724478773076,1.14188917,2757.3,2757.0,8.83023359]
[1724478773077,0.76105335,2757.2,2757.1,3.62699]
[1724478773273,0.76105335,2757.2,2757.1,5.05999936]
[1724478773468,0.76105335,2757.2,2757.1,5.11644629]
[1724478774375,1.14188917,2757.3,2757.2,3.62686]
[1724478774376,0.76105335,2757.3,2757.2,3.62686]
[1724478774613,0.76105335,2757.3,2757.2,4.17686]
[1724478774821,0.76105335,2757.3,2757.2,4.23328646]
[1724478775117,0.76105335,2757.3,2757.2,5.20457966]
[1724478775322,1.14188917,2757.3,2757.2,5.20457966]
[1724478775480,1.14188917,2757.4,2757.2,5.20457966]
[1724478775683,1.14188917,2757.4,2757.3,0.55]
[1724478775892,0.37610875,2757.4,2757.3,0.55]
[1724478776099,0.37610875,2757.4,2757.3,0.60640599]
[1724478776625,1.14100635,2757.4,2757.3,0.60640599]
[1724478777825,0.3675054,2757.4,2757.3,0.05640599]
[1724478777985,1.8894956,2757.4,2757.1,3.62692]
[1724478778327,0.76063685,2757.2,2757.1,4.352331]
[1724478778783,0.76063685,2757.3,2757.2,3.62686]
[1724478778986,0.76063685,2757.4,2757.2,4.17686]
[1724478779209,0.76063685,2757.4,2757.3,0.9079191]
[1724478779418,0.76063685,2757.4,2757.3,1.4579191]
[1724478781137,0.76063685,2757.4,2757.3,5.0846491]
[1724478781313,0.76063685,2757.5,2757.3,5.0846491]
[1724478781642,0.76063685,2757.5,2757.4,10.2394]
[1724478781813,1.5219902,2757.8,2757.4,10.2394]
[1724478781814,0.76063685,2757.6,2757.5,3.62647]
[1724478782139,0.76063685,2757.7,2757.6,3.62634]
[1724478782362,0.76063685,2757.7,2757.6,4.17634]
[1724478783353,0.76063685,2757.8,2757.7,3.62621]
[1724478783562,0.76063685,2758.0,2757.9,3.62594]
[1724478783901,0.76063685,2758.1,2758.0,3.62581]
[1724478784129,0.76063685,2758.1,2758.0,4.17581]
[1724478784333,3.60985528,2758.2,2758.0,4.23144377]
[1724478784503,0.8096598,2758.2,2758.0,4.23144377]
[1724478785752,0.05,2758.2,2758.0,4.23144377]
[1724478786751,0.8096598,2758.2,2758.0,4.23144377]
[1724478787811,0.05,2758.2,2758.0,4.23144377]
[1724478788257,0.05,2758.2,2758.1,3.69818834]
[1724478788476,0.05,2758.2,2758.1,4.24818834]
[1724478788689,0.05,2758.2,2758.1,4.30322049]
[1724478789486,0.05,2758.2,2758.1,0.60503215]
[1724478790181,0.05,2758.2,2758.1,4.23071215]
[1724478790388,0.05,2758.2,2758.1,5.0949305]
[1724478790858,0.05,2758.2,2758.1,1.4692505]
[1724478791058,0.05,2758.2,2758.1,0.60503215]
[1724478791650,0.05,2758.2,2758.1,4.23071215]
[1724478795170,0.05,2758.2,2758.1,0.60503215]
[1724478796691,0.05,2758.2,2758.1,4.23071215]
[1724478799349,0.05,2758.2,2758.1,0.60503215]
[1724478799550,0.05,2758.2,2758.1,0.05503215]
[1724478799923,2.3363,2758.2,2757.8,3.62603]
[1724478800087,2.3363,2758.2,2758.1,0.05485784]
[1724478800555,2.3363,2758.2,2757.9,0.55]
[1724478800757,2.3363,2758.2,2758.0,0.05487829]
[1724478800953,2.3363,2758.2,2757.6,3.62625]
[1724478801164,3.0959598,2758.2,2757.7,3.68114023]
[1724478802077,2.3363,2758.2,2757.7,3.68114023]
[1724478802576,3.0959598,2758.2,2757.7,3.68114023]
[1724478802758,3.0959598,2758.2,2757.8,4.17606]
[1724478802958,3.0959598,2758.2,2757.9,0.05490931]
[1724478804807,3.0959598,2758.2,2758.0,3.62573]
[1724478805015,2.3363,2758.2,2758.0,4.17573]
[1724478805367,2.3363,2758.2,2758.1,0.05415368]
[1724478806296,2.3363,2758.2,2758.1,3.67983368]
[1724478806899,2.3363,2758.2,2758.1,0.05415368]
[1724478808572,0.05,2758.2,2758.1,3.67983368]
[1724478810874,0.05,2758.2,2758.1,5.05769974]
[1724478811801,0.05,2758.2,2758.1,8.68337974]
[1724478813744,0.05,2758.2,2758.1,5.05769974]
[1724478813953,0.05,2758.2,2758.1,4.22983368]
[1724478814112,0.05,2758.2,2758.1,0.60415368]
[1724478814452,0.05,2758.2,2758.1,0.05415368]
[1724478814453,4.38104604,2758.2,2758.1,0.05415368]
[1724478814750,2.4809,2758.2,2757.8,3.62607]
[1724478815004,2.4809,2758.2,2757.9,1.275222]
[1724478815158,2.4809,2758.2,2757.9,1.32908917]
[1724478815318,3.24009076,2758.2,2757.9,1.32908917]
[1724478815519,0.75919076,2758.1,2757.9,1.32908917]
[1724478815713,0.75919076,2758.1,2757.9,4.95502917]
[1724478816412,3.24009076,2758.2,2757.9,4.95502917]
[1724478817659,3.24009076,2758.2,2758.1,3.62568]
[1724478817858,3.24009076,2758.2,2758.1,4.17568]
[1724478818059,3.24009076,2758.2,2758.1,4.22950625]
[1724478818249,3.24009076,2758.2,2758.1,0.60382625]
[1724478819128,3.24061953,2758.2,2758.1,4.22950625]
[1724478819328,0.05,2758.2,2758.1,4.22950625]
[1724478819569,1.19095528,2758.2,2758.1,4.22950625]
[1724478819788,0.05,2758.2,2758.1,5.06459217]
[1724478819932,0.80983737,2758.2,2758.1,5.06459217]
[1724478821560,0.05,2758.2,2758.1,5.06459217]
[1724478821736,1.19095528,2758.2,2758.1,5.06459217]
[1724478824327,1.93931765,2758.2,2758.1,4.22950625]
[1724478824542,2.89262745,2758.2,2758.1,0.05382625]
[1724478824747,4.79092342,2758.2,2758.1,0.05382625]
[1724478825079,2.4753,2758.1,2757.7,3.6262]
[1724478825286,2.4753,2758.1,2757.6,3.62622]
[1724478825287,1.14138824,2757.8,2757.6,3.62622]
[1724478825487,0.76115725,2757.7,2757.6,4.651495]
[1724478825635,1.14138824,2757.7,2757.4,6.62655]
[1724478825833,0.76120632,2757.5,2757.4,3.62655]
[1724478826029,0.76120632,2757.6,2757.5,3.62647]
[1724478826242,0.76115802,2757.6,2757.5,7.25294]
[1724478826442,0.76115802,2757.7,2757.6,3.62634]
[1724478826674,1.14138824,2757.8,2757.7,3.62621]
[1724478826879,1.14138824,2757.8,2757.7,4.17621]
[1724478828553,0.36767143,2757.8,2757.7,4.17621]
[1724478828795,1.14204733,2757.8,2757.7,4.17621]
[1724478828955,1.14202708,2757.8,2757.7,4.17621]
[1724478829290,1.14202708,2757.8,2757.7,5.08115019]
[1724478829952,0.36766254,2757.8,2757.7,5.08115019]
[1724478830800,0.36765528,2757.8,2757.7,5.08115019]
[1724478830949,1.14199766,2757.8,2757.7,5.08115019]
[1724478831979,0.36765547,2757.8,2757.7,5.08115019]
[1724478833199,1.14187011,2757.8,2757.7,5.08115019]
[1724478834329,0.36760516,2757.8,2757.7,8.70728019]
[1724478834824,1.14178522,2757.8,2757.7,5.08107019]
[1724478835019,1.14179013,2757.8,2757.7,5.08107019]
[1724478835171,1.14179013,2757.8,2757.7,7.85448409]
[1724478838004,4.54598408,2757.8,2757.7,0.05214409]
[1724478838177,2.64305426,2757.8,2757.7,0.05214409]
[1724478838377,2.64305426,2757.8,2757.3,3.62666]
[1724478838582,1.14164056,2757.4,2757.3,3.62666]
[1724478839333,1.14164056,2757.5,2757.4,3.6266]
[1724478839842,1.14164056,2757.5,2757.4,4.1766]
[1724478840197,0.36758864,2757.5,2757.4,4.1766]
[1724478840921,0.36758864,2757.5,2757.4,0.55]
[1724478841089,1.14139361,2757.5,2757.4,0.55]
[1724478841487,0.36759377,2757.5,2757.4,0.55]
[1724478841687,1.14114586,2757.5,2757.4,5.0294822]
[1724478842441,1.14116562,2757.5,2757.4,5.0294822]
[1724478844140,1.14116562,2757.5,2757.4,5.07866178]
[1724478844291,0.7605768,2757.5,2757.4,5.07858178]
[1724478844489,0.7605768,2757.6,2757.5,7.25294]
[1724478844841,0.7605768,2757.8,2757.7,3.62621]
[1724478845109,0.7605768,2757.9,2757.8,3.62607]
[1724478845464,0.7605768,2757.9,2757.8,4.17607]
[1724478845780,1.14116562,2758.0,2757.8,4.22515717]
[1724478846068,1.14116562,2758.0,2757.9,0.55]
[1724478846274,3.57676562,2758.1,2757.9,4.22500672]
[1724478846475,1.14116562,2758.0,2757.9,4.22500672]
[1724478846784,3.57676562,2758.1,2757.9,5.01012839]
[1724478846913,0.76041232,2758.0,2757.9,5.01012839]
[1724478847764,3.57676562,2758.1,2757.9,5.01012839]
[1724478847970,1.14116562,2758.0,2757.9,4.22500672]
[1724478848733,0.76040129,2758.0,2757.9,0.59906672]
[1724478849140,0.76041809,2758.0,2757.9,4.22492672]
[1724478852233,0.76041809,2758.0,2757.9,0.59906672]
[1724478852621,3.57676562,2758.1,2757.9,0.04906672]
[1724478852784,1.14116562,2758.0,2757.9,0.04906672]
[1724478854054,1.14116562,2758.0,2757.9,3.67500672]
[1724478854251,0.3672246,2758.0,2757.9,3.67500672]
[1724478854452,1.14066576,2758.0,2757.9,3.67346165]
[1724478862174,5.37762569,2758.0,2757.9,0.04752165]
[1724478862355,2.771611,2758.0,2757.9,0.04752165]
[1724478862555,2.771611,2758.0,2757.7,3.62619]
[1724478862795,2.3046,2757.8,2757.7,3.62619]
[1724478863099,2.671911,2757.8,2757.7,3.62619]
[1724478864003,3.44563801,2757.8,2757.7,3.62619]
[1724478865292,1.14103801,2757.8,2757.7,7.8024]
[1724478871023,1.14103801,2757.8,2757.7,4.17619]
[1724478872077,1.14103801,2757.8,2757.5,3.62639]
[1724478872277,3.34937335,2757.8,2757.5,3.62639]
[1724478872598,1.14103801,2757.6,2757.5,3.62639]
[1724478872799,1.14103801,2757.6,2757.5,4.17639]
[1724478873009,3.44563801,2757.7,2757.5,4.17639]
[1724478873396,3.44563801,2757.7,2757.3,3.62666]
[1724478873597,0.76093835,2757.4,2757.3,7.25339]
[1724478873880,0.76093835,2757.5,2757.4,3.6266]
[1724478874227,0.76093835,2757.5,2757.4,10.0992]
[1724478874410,0.76093835,2757.6,2757.5,7.25294]
[1724478874611,0.76093835,2757.6,2757.5,7.80294]
[1724478874925,0.76093835,2757.6,2757.5,7.85211617]
[1724478875371,0.76093835,2757.7,2757.6,3.62634]
[1724478875517,0.76087057,2757.7,2757.6,4.17634]
[1724478875712,0.76087057,2757.7,2757.6,4.22549571]
[1724478875914,0.76087057,2757.7,2757.6,7.85183571]
[1724478876147,0.76087057,2757.8,2757.7,3.62621]
[1724478876330,0.76087057,2757.8,2757.7,4.17621]
[1724478876535,0.76087057,2757.8,2757.7,4.22531359]
[1724478877039,1.14103801,2757.9,2757.8,3.62607]
[1724478877414,1.14103801,2757.9,2757.8,3.67515313]
[1724478878865,1.14103801,2757.9,2757.8,4.22515313]
[1724478881577,1.14103801,2758.0,2757.9,3.62594]
[1724478881895,0.27581666,2758.0,2757.9,4.17594]
[1724478882022,1.14122666,2758.0,2757.9,4.17594]
[1724478882233,1.14122666,2758.0,2757.9,4.2249974]
[1724478882428,0.76077162,2758.0,2757.9,4.2249974]
[1724478887271,1.14122666,2758.1,2758.0,3.62581]
[1724478887449,0.27579542,2758.1,2758.0,4.17581]
[1724478887648,0.27579542,2758.1,2758.0,4.22484695]
[1724478888480,1.14146476,2758.1,2758.0,4.22484695]
[1724478889481,1.14146476,2758.1,2758.0,5.00992265]
[1724478891800,0.27588202,2758.1,2758.0,5.00992265]
[1724478892009,0.27588202,2758.1,2758.0,4.22484695]
[1724478892660,1.14159842,2758.1,2758.0,4.22484695]
[1724478894273,0.76101012,2758.1,2758.0,7.85065695]
[1724478894583,1.19159842,2758.2,2758.1,3.62568]
[1724478894901,1.19159842,2758.2,2758.1,4.22460683]
[1724478897206,1.19159842,2758.2,2758.1,7.85028683]
[1724478897583,0.05,2758.2,2758.1,8.63531551]
[1724478897782,0.81081651,2758.2,2758.1,8.63531551]
[1724478898610,0.05,2758.2,2758.1,8.63531551]
[1724478899205,0.81081651,2758.2,2758.1,8.63531551]
[1724478899567,0.05,2758.2,2758.1,8.63531551]
[1724478899767,0.81081651,2758.2,2758.1,8.63531551]
[1724478899971,0.81081651,2758.2,2758.1,4.22460683]
[1724478900663,1.19159842,2758.2,2758.1,4.22460683]
[1724478900963,0.81063842,2758.2,2758.1,4.22460683]
[1724478901627,0.05,2758.2,2758.1,4.22460683]
[1724478902830,0.81058062,2758.2,2758.1,4.22460683]
[1724478902989,0.05,2758.2,2758.1,4.22460683]
[1724478903189,1.19159842,2758.2,2758.1,4.22460683]
[1724478904281,0.05,2758.2,2758.1,4.22460683]
[1724478904633,0.8105278,2758.2,2758.1,4.22460683]
[1724478905129,0.05,2758.2,2758.1,4.22460683]
[1724478905521,0.81050436,2758.2,2758.1,4.22460683]
[1724478906100,1.19159842,2758.2,2758.1,4.22460683]
[1724478906301,0.05,2758.2,2758.1,4.22460683]
[1724478906690,1.19159842,2758.2,2758.1,4.22460683]
[1724478907029,0.81048168,2758.2,2758.1,4.22460683]
[1724478909137,0.8105005,2758.2,2758.1,4.22460683]
[1724478912538,0.8105005,2758.2,2758.1,7.85028683]
[1724478912699,0.8105005,2758.2,2758.1,4.22460683]
[1724478912894,0.32559395,2758.2,2758.1,0.59892683]
[1724478913112,2.46777884,2758.2,2758.1,0.59892683]
[1724478913335,0.94640426,2758.2,2758.1,0.59892683]
[1724478913943,3.33180426,2758.2,2758.1,0.59892683]
[1724478914502,4.23250663,2758.2,2758.1,0.59892683]
[1724478914702,4.23250663,2758.2,2758.1,4.22460683]
[1724478914902,4.23250663,2758.2,2758.1,0.59892683]
[1724478915138,2.711063,2758.2,2758.1,0.04892683]
[1724478915303,2.711063,2758.2,2757.8,3.62602]
[1724478915511,0.76076604,2757.9,2757.8,3.62602]
[1724478917568,0.76076604,2757.9,2757.8,8.527309]
[1724478919217,0.76076604,2757.9,2757.8,8.57473326]
[1724478919527,0.76076604,2758.0,2757.9,7.25188]
[1724478919727,0.76076604,2758.0,2757.9,7.8492838]
[1724478921520,1.19114907,2758.2,2758.1,3.62568]
[1724478921730,1.19114907,2758.2,2758.1,4.22304289]
[1724478922368,1.19114907,2758.2,2758.1,7.84872289]
[1724478922533,1.19114907,2758.2,2758.1,8.63359518]
[1724478923369,0.05,2758.2,2758.1,8.63359518]
[1724478923521,1.19114907,2758.2,2758.1,8.63359518]
[1724478924117,0.05,2758.2,2758.1,8.63359518]
[1724478924460,1.19114907,2758.2,2758.1,8.63359518]
[1724478927460,0.81126958,2758.2,2758.1,8.63359518]
[1724478928377,0.05,2758.2,2758.1,19.59272804]
[1724478928577,0.05,2758.2,2758.1,20.72608956]
[1724478928879,0.05,2758.2,2758.1,18.83570275]
[1724478929440,0.05,2758.2,2758.1,17.57547518]
[1724478929639,0.05,2758.2,2758.1,18.83569828]
[1724478929970,0.05,2758.2,2758.1,20.72596022]
[1724478930325,0.05,2758.2,2758.1,24.35164022]
[1724478932946,0.05,2758.2,2758.1,24.3515067]
[1724478933560,0.05,2758.2,2758.1,24.35144331]
[1724478934139,0.05,2758.2,2758.1,20.72576331]
[1724478935494,0.05,2758.2,2758.1,17.57547518]
[1724478937479,0.05,2758.2,2758.1,11.08359518]
[1724478938992,0.05,2758.2,2758.1,11.63359518]
[1724478941611,0.05,2758.2,2758.1,15.25927518]
[1724478945815,0.05,2758.2,2758.1,11.63359518]
[1724478947511,0.05,2758.2,2758.1,15.25927518]
[1724478952574,0.05,2758.2,2758.1,11.63359518]
[1724478953091,0.05,2758.2,2758.1,15.25927518]
[1724478953476,0.05,2758.2,2758.1,11.63359518]
[1724478953677,0.05,2758.2,2758.1,10.84872289]
[1724478953877,0.05,2758.2,2758.1,14.47440289]
[1724478956627,0.05,2758.2,2758.1,16.88940289]
[1724478961518,0.05,2758.2,2758.1,20.51508289]
[1724478962388,0.05,2758.2,2758.1,16.88940289]
[1724478962698,0.05,2758.2,2758.1,22.51174919]
[1724478964403,1e-05,2758.2,2758.1,26.13742919]
[1724478964927,1e-05,2758.2,2758.1,22.51174919]
[1724478965289,1e-05,2758.2,2758.1,26.13742919]
[1724478966186,1e-05,2758.2,2758.1,32.69015635]
[1724478966589,1e-05,2758.2,2758.1,29.06445853]
[1724478966886,1e-05,2758.2,2758.1,29.06445931]
[1724478967331,1e-05,2758.2,2758.1,29.06384059]
[1724478967532,1e-05,2758.2,2758.1,32.68952059]
[1724478968729,1e-05,2758.2,2758.1,29.06384059]
[1724478970524,1e-05,2758.2,2758.1,27.92884821]
[1724478970714,1e-05,2758.2,2758.1,29.06460095]
[1724478971316,0.05,2758.5,2758.4,10.87587]
[1724478971511,0.05,2758.5,2758.4,20.08193191]
[1724478971845,0.05,2758.5,2758.4,25.64342476]
[1724478972016,0.05,2758.5,2758.4,22.01813476]
[1724478972213,0.05,2758.5,2758.4,20.12822087]
[1724478972396,0.05,2758.5,2758.4,16.50096072]
[1724478972604,0.05,2758.5,2758.4,15.24101813]
[1724478973546,2.4875,2758.5,2758.4,15.24101813]
[1724478973769,2.4875,2758.5,2758.4,13.92215896]
[1724478974759,2.4875,2758.5,2758.4,14.47215896]
[1724478977658,0.05,2758.5,2758.4,14.47215896]
[1724478979221,2.3709,2758.5,2758.4,10.84686896]
[1724478982434,2.3709,2758.5,2758.4,7.84686896]
[1724478987715,0.05,2758.5,2758.4,10.84686896]
[1724478987887,0.05,2758.5,2758.4,12.29408786]
[1724478990544,0.040392,2758.5,2758.4,12.29408786]
[1724478991504,0.040392,2758.5,2758.4,15.91937786]
[1724478997655,0.040392,2758.5,2758.4,18.99663801]
[1724478997855,0.040392,2758.5,2758.4,24.55860263]
[1724478998055,0.040392,2758.5,2758.4,28.18389263]
[1724478998638,0.040392,2758.5,2758.4,24.55860263]
[1724478999252,0.040392,2758.5,2758.4,28.18389263]
[1724478999451,0.040392,2758.5,2758.4,24.55860263]
[1724478999639,0.040392,2758.5,2758.4,28.18389263]
[1724478999837,0.040392,2758.5,2758.4,18.22858591]
[1724479000864,0.040392,2758.5,2758.4,21.85378496]
[1724479001660,0.040392,2758.5,2758.4,25.47907496]
[1724479001818,2e-06,2758.5,2758.4,26.78621488]
[1724479002021,2e-06,2758.5,2758.4,26.02907496]
[1724479002271,0.1292533,2758.9,2758.8,14.49904]
[1724479002272,5.3e-06,2758.9,2758.8,14.49904]
[1724479002467,5.3e-06,2758.9,2758.8,25.93973795]
[1724479002671,5.3e-06,2758.9,2758.8,28.93973795]
[1724479004564,5.3e-06,2758.9,2758.8,28.1825628]
[1724479005655,5.3e-06,2758.9,2758.8,28.18200359]
[1724479006075,5.3e-06,2758.9,2758.8,31.80676359]
[1724479006282,5.3e-06,2758.9,2758.8,32.56393874]
[1724479006632,5.3e-06,2758.9,2758.8,28.93917874]
[1724479006941,5.3e-06,2758.9,2758.8,25.77010359]